Cogmind - Beta 13 @@@ ROGUE MODE // 2024.04.01 @ 10:13:22 Player: Matt Result: Destroyed by HF-6PK(M) with Barrage Gun Performance ------------- Evolutions (3) 1500 Regions Visited (10) 2000 Robots Destroyed (92) 460 Value Destroyed (2928) 2928 Prototype IDs (1) 20 Alien Tech Used (0) 0 Bonus (1025) 1025 TOTAL SCORE: 7933 Bonus ------- High Alert Combat Kills 477 Aligned with FarCom 300 Met Imprinter 300 Friendly Fire -52 Cogmind --------- Core Integrity 0/700 Matter 208/300 Energy 100/100 System Corruption 19% Temperature Cool (9) Movement Rolling (130) Ox2 Location -7/Zion Parts ------- > --- POWER (2) -------- (None) > --- PROPULSION (4) --- Armored Huge Wheel Armored Huge Wheel > --- UTILITY (5) ------ High-capacity Storage Unit Huge Storage Unit > --- WEAPON (2) ------- CR-A16's Pointy Stick > --- INVENTORY (25) --- Makeshift Power Source Carbon-fiber Leg Carbon-fiber Leg Compact Wheel Armored Wheel Improved Cooling System Improved Cooling System Coolant Injector Authchip [Armor] Peak State ------------ > --- POWER ------------ Light Nuclear Core Light Nuclear Core > --- PROPULSION ------- Armored Huge Wheel Armored Huge Wheel > --- UTILITY ---------- Disposable Heat Sink Huge Storage Unit Medium Reactive Plating System Restoration Module System Restoration Module > --- WEAPON ----------- Arc Projector Ion Cannon > --- INVENTORY -------- Nuclear Core Improved Deuterium Engine Improved Deuterium Engine Micro Nuclear Core Light Treads Medium Treads Compact Wheel Armored Huge Wheel Armored Huge Wheel Armored Huge Wheel Armored Huge Wheel Improved Heat Sink Cooling System Improved Cooling System Coolant Injector High-capacity Storage Unit Hardened Light Armor Plating Medium Reactive Plating Improved Field Recycling Unit EM Shotgun Arc Projector [Rating: 52] Favorites ----------- Power Ion Engine Engine Ion Engine Power Core Light Nuclear Core Propulsion Light Treads Treads Light Treads Leg Carbon-fiber Leg Wheel Armored Huge Wheel Utility Improved Heat Sink Device Improved Heat Sink Storage Huge Storage Unit Protection Medium Reactive Plating Weapon Arc Projector Energy Gun Arc Projector Energy Cannon Ion Cannon Ballistic Gun Light Assault Rifle Launcher Grenade Launcher Piercing Weapon CR-A16's Pointy Stick Build | -11 -10 -10 -10 -9 -8 -7 -7 -7 -7 -7 ------- Run | Yrd Mat Min Exi Min Mat Fac Was Fac Low Zio Slots Evolved 6 | . . . . . 4 2 . . . . Power 1 | . . . . . 1 . . . . . Propulsion 2 | . . . . . 1 1 . . . . Utility 3 | . . . . . 2 1 . . . . Weapon . | . . . . . . . . . . . Parts Attached 129 | 5 5 1 1 4 53 17 . 14 . 29 Power 23 | 1 1 1 . . 9 2 . 3 . 6 Engine 14 | 1 1 1 . . 6 1 . . . 4 Core 9 | . . . . . 3 1 . 3 . 2 Reactor . | . . . . . . . . . . . Propulsion 29 | 2 2 . . . 13 3 . . . 9 Treads 10 | . 2 . . . 5 . . . . 3 Leg 10 | 2 . . . . 7 . . . . 1 Wheel 9 | . . . . . 1 3 . . . 5 Hover . | . . . . . . . . . . . Flight . | . . . . . . . . . . . Utility 45 | . . . 1 2 15 10 . 10 . 7 Device 19 | . . . . . 5 6 . 5 . 3 Storage 8 | . . . 1 . 3 2 . . . 2 Processor . | . . . . . . . . . . . Hackware . | . . . . . . . . . . . Protection 18 | . . . . 2 7 2 . 5 . 2 Artifact . | . . . . . . . . . . . Weapon 32 | 2 2 . . 2 16 2 . 1 . 7 Energy Gun 9 | 1 1 . . . 5 1 . . . 1 Energy Cannon 10 | . . . . 1 7 1 . 1 . . Ballistic Gun 7 | 1 1 . . . . . . . . 5 Ballistic Cannon . | . . . . . . . . . . . Launcher 5 | . . . . 1 4 . . . . . Special Weapon . | . . . . . . . . . . . Impact Weapon . | . . . . . . . . . . . Slashing Weapon . | . . . . . . . . . . . Piercing Weapon 1 | . . . . . . . . . . 1 Special Melee Weapon . | . . . . . . . . . . . Unidentified Prototypes 1 | . . . . . 1 . . . . . Parts Lost 54 | . . 1 . . 24 . 1 2 . 26 Power 13 | . . . . . 6 . 1 1 . 5 Propulsion 14 | . . . . . 8 . . . . 6 Utility 12 | . . . . . 3 . . 1 . 8 Weapon 15 | . . 1 . . 7 . . . . 7 Highest Loss Streak 11 | . . 1 . . 11 . 1 1 . 11 To Critical Strikes . | . . . . . . . . . . . Average Slot Usage (%) 81 | . 71 66 66 94 95 83 74 81 . 80 Engine 9 | . 14 14 14 14 15 12 4 . . 1 Core 5 | . . . . . 1 2 7 14 . 12 Treads 11 | . 2 28 28 28 15 2 . . . 2 Leg 3 | . 25 . . . 9 . . . . . Wheel 6 | . . . . . . 14 15 15 . 13 Device 11 | . . . . . 15 14 15 15 . 14 Storage 9 | . . . 9 14 9 14 15 8 . 7 Protection 7 | . . . . 11 10 7 4 10 . 12 Energy Gun 5 | . 14 9 . . 6 6 7 7 . 5 Energy Cannon 4 | . . . . . 5 6 4 6 . 5 Ballistic Gun 4 | . 14 14 14 14 . . . . . 1 Launcher 1 | . . . . 10 4 . . . . . Naked Turns . | . . . . . . . . . . . Heaviest Build 140 | 6 7 8 11 21 87 140 131 130 130 130 Greatest Support 79 | 20 40 40 40 40 60 56 56 56 56 79 Greatest Overweight (x) 12 | . . . . . 7 12 2 2 2 4 Average Overweight (x) 1 | . . . . . . 2 1 1 2 1 Largest Inventory Capacity 25 | 5 5 5 8 8 20 25 25 25 25 25 Average Capacity 16 | 5 5 5 7 8 8 24 25 25 25 24 Most Carried 25 | 5 5 5 5 8 12 25 25 25 23 25 Average Carried 13 | 3 4 4 4 6 7 13 24 23 23 22 Final Capacity 25 | 5 5 5 8 8 20 25 25 25 25 25 Final Carried 25 | 5 5 4 4 8 7 24 25 24 23 9 Class Distribution -------------------- 89% | Mutant 10% | Scavenger-Mutant Dominant Class ---------------- Mutant | -10/Materials Mutant | -10/Mines Mutant | -10/Exiles Mutant | -9/Mines Mutant | -8/Materials Mutant | -7/Factory Mutant | -7/Waste Mutant | -7/Factory Mutant | -7/Lower Caves Mutant | -7/Zion Resources | -11 -10 -10 -10 -9 -8 -7 -7 -7 -7 -7 ----------- Run | Yrd Mat Min Exi Min Mat Fac Was Fac Low Zio Matter Collected 1623 | 265 47 72 . 49 455 125 . 199 . 411 Remotely . | . . . . . . . . . . . Salvage Created 3368 | 61 47 189 . . 1813 244 . 394 . 620 Parts 190 | 4 5 14 . . 99 15 . 21 . 32 Haulers Intercepted 2 | . . . . . 1 . . 1 . . Recyclers Shooed 2 | . . . . . 1 . . 1 . . Parts Field Recycled 49 | . . . . . 44 5 . . . . Retrieved Matter 582 | . . . . . 510 72 . . . . Parts Self-Destructed 1 | . . . . . . . . . . 1 Prevented . | . . . . . . . . . . . Kills | -11 -10 -10 -10 -9 -8 -7 -7 -7 -7 -7 ------- Run | Yrd Mat Min Exi Min Mat Fac Was Fac Low Zio Combat Hostiles Destroyed 68 | 1 3 6 . . 41 4 . 4 . 9 Guns 18 | 1 3 6 . . 2 2 . . . 4 Cannons 22 | . . . . . 11 2 . 4 . 5 AOE 28 | . . . . . 28 . . . . . Classes Destroyed 16 | 2 1 . . . 9 1 . . . 3 Worker 9 | 1 . . . . 6 . . 2 . . Builder 4 | . . . . . 4 . . . . . Tunneler 4 | . . . . . 4 . . . . . Hauler 2 | . . . . . 1 . . 1 . . Recycler 3 | . . . . . 3 . . . . . Watcher 4 | . . . . . 3 . . 1 . . Swarmer 9 | . 3 3 . . 3 . . . . . Grunt 38 | 1 . 3 . . 32 1 . 1 . . Duelist 1 | . . . . . 1 . . . . . Protector 1 | . . . . . 1 . . . . . Sentry 6 | . . . . . 3 1 . 2 . . Hunter 2 | . . . . . 1 1 . . . . Programmer 2 | . . . . . . 1 . 1 . . Zionite 7 | . . . . . . . . . . 7 Wasp 2 | . . . . . . . . . . 2 Thug 2 | . . . . . . . . . . 2 Butcher 2 | . . . . . . . . . . 2 Fireman 1 | . . . . . . . . . . 1 Mutant 2 | . . . . . . . . . . 2 Best Kill Streak 14 | 1 3 3 . . 14 1 . 1 . 7 Combat Bots Only 7 | 1 3 3 . . 7 1 . 1 . 7 Max Kills in Single Turn 4 | 1 1 1 . . 4 1 . 1 . 1 Gunslinging . | . . . . . . . . . . . Exploded 3 | . . . . . 3 . . . . . Melee . | . . . . . . . . . . . Uniques/NPCs Destroyed . | . . . . . . . . . . . Combat | -11 -10 -10 -10 -9 -8 -7 -7 -7 -7 -7 -------- Run | Yrd Mat Min Exi Min Mat Fac Was Fac Low Zio Hostile Shots Fired 928 | 1 47 26 . . 298 57 2 62 . 435 Missed 290 | 1 12 3 . . 97 28 1 21 . 127 Damage Taken 9108 | . 268 299 . . 3563 196 39 486 . 4257 Core 1092 | . 42 37 . . 304 . . 38 . 671 Absorbed by Shields . | . . . . . . . . . . . Ignored by Resistances 278 | . . . . . 137 60 . 30 . 51 Regen/Repaired (Parts) 272 | . . . . . 67 205 . . . . Core Remaining (%) 70 | 100 . . . 68 44 . . . . . Volleys Fired 267 | 5 14 18 6 . 104 13 . 26 . 81 Largest 2 | 1 1 2 1 . 2 2 . 2 . 2 Hottest 150 | 20 20 60 20 . 150 115 . 115 . 115 Shots Fired 386 | 5 14 29 6 . 153 26 1 54 . 98 Gun 219 | 5 14 29 6 . 43 13 1 28 . 80 Cannon 123 | . . . . . 66 13 . 26 . 18 Launcher 44 | . . . . . 44 . . . . . Special . | . . . . . . . . . . . Kinetic 113 | 5 14 18 6 . 6 . . . . 64 Thermal 121 | . . . . . 64 13 . 26 . 18 Explosive 44 | . . . . . 44 . . . . . Electromagnetic 108 | . . 11 . . 39 13 1 28 . 16 Robot Hit Streak 26 | 3 8 13 . . 12 5 2 7 . 26 Robot Miss Streak 7 | 1 2 3 . . 3 1 . 3 . 7 Penetration Max . | . . . . . . . . . . . Secondary Targets 1 | . . 1 . . . . . . . . Max Gunslinging Chain 1 | . . 1 . . . . . . . . Shots Hit Robots 268 | 4 11 18 . . 101 16 1 30 . 87 Core Hits 201 | 2 3 12 . . 106 8 . 14 . 56 Critical Kills . | . . . . . . . . . . . Critical Parts Destroyed . | . . . . . . . . . . . Critical Strikes 1 | . . 1 . . . . . . . . Corrupt 1 | . . 1 . . . . . . . . Melee Attacks 7 | . . . . . . . . . . 7 Impact . | . . . . . . . . . . . Slashing . | . . . . . . . . . . . Piercing 7 | . . . . . . . . . . 7 Sneak Attacks . | . . . . . . . . . . . Combat Hostiles . | . . . . . . . . . . . Follow-up Attacks . | . . . . . . . . . . . Damage Inflicted 8236 | 52 133 187 . . 5465 300 1 563 . 1535 Guns 2345 | 52 133 187 . . 622 102 1 152 . 1096 Cannons 1887 | . . . . . 1000 198 . 411 . 278 Explosions 3842 | . . . . . 3842 . . . . . Melee 161 | . . . . . . . . . . 161 Ramming 1 | . . . . . 1 . . . . . Kinetic 1238 | 52 133 90 . . 13 . . . . 950 Thermal 2063 | . . . . . 1176 198 . 411 . 278 Explosive 3666 | . . . . . 3666 . . . . . Electromagnetic 1107 | . . 97 . . 609 102 1 152 . 146 Impact . | . . . . . . . . . . . Slashing . | . . . . . . . . . . . Piercing 161 | . . . . . . . . . . 161 Highest Corruption 19 | . . . . . 18 1 19 19 5 19 Average Corruption 9 | . . . . . 5 1 12 11 5 13 Corruption Purged 16 | . . . . . . . . 16 . . Corruption Blocked . | . . . . . . . . . . . Effects 99 | . . . . . 19 2 15 44 . 19 Message Errors 15 | . . . . . 2 1 1 9 . 2 Matter Fused 28 | . . . . . 10 1 . 13 . 4 Heat Flow Errors 13 | . . . . . 1 . 3 3 . 6 Energy Discharges 6 | . . . . . 3 . . 2 . 1 Parts Rejected 2 | . . . . . . . 1 . . 1 Data Loss (minor) 19 | . . . . . 2 . 5 9 . 3 Data Loss (major) 1 | . . . . . . . . 1 . . Misfires 4 | . . . . . . . 1 3 . . Alerts 4 | . . . . . 1 . . 3 . . Misdirections 4 | . . . . . . . 4 . . . Weapon Failures 3 | . . . . . . . . 1 . 2 Overload Shots . | . . . . . . . . . . . Overflow Damage 148 | . . . . . 148 . . . . . Projectiles 5 | . . . . . 5 . . . . . Explosions 143 | . . . . . 143 . . . . . Melee . | . . . . . . . . . . . Knockbacks . | . . . . . . . . . . . Impact . | . . . . . . . . . . . Kinetic . | . . . . . . . . . . . Secondary . | . . . . . . . . . . . Self-Inflicted Damage 400 | . . . . . 400 . . . . . Shots 12 | . . . . . 12 . . . . . Rammed 1 | . . . . . 1 . . . . . Targets Rammed 1 | . . . . . 1 . . . . . Kicked . | . . . . . . . . . . . Crushed . | . . . . . . . . . . . Highest Temperature 508 | . . 56 . . 508 20 171 209 . 218 Average Temperature 96 | . . 23 . . 126 8 76 69 . 74 Received Heat Transfer 2413 | . . 126 . . 1413 45 . 87 . 742 Effects 11 | . . . . . 11 . . . . . Shutdowns 4 | . . . . . 4 . . . . . Energy Bleed 2 | . . . . . 2 . . . . . Interference 4 | . . . . . 4 . . . . . Damage (minor) 1 | . . . . . 1 . . . . . Siege Activations . | . . . . . . . . . . . Robots Corrupted . | . . . . . . . . . . . Combat Hostiles . | . . . . . . . . . . . Parts Fried 4 | . . . . . 3 . . . . 1 Impact Corruptions . | . . . . . . . . . . . Robots Melted . | . . . . . . . . . . . Combat Hostiles . | . . . . . . . . . . . Parts Melted 1 | . . . . . . . . 1 . . Heat Transferred 3086 | . . . . . 1680 296 . 629 . 481 Parts Sabotaged . | . . . . . . . . . . . Parts Stolen . | . . . . . . . . . . . Parts Stripped . | . . . . . . . . . . . Power Chain Reactions 2 | . . . . . 2 . . . . . Alert | -11 -10 -10 -10 -9 -8 -7 -7 -7 -7 -7 ------- Run | Yrd Mat Min Exi Min Mat Fac Was Fac Low Zio Peak Influence 1181 | 25 101 239 . 10 1181 534 106 114 . . Initial 507 | . 16 39 . . 3 507 106 63 . . Average 263 | 4 71 174 . 9 385 436 92 50 . . Maximum Alert Level 4 | . . 1 . . 4 2 . . . . Low Security (%) 63 | 100 100 43 . 100 60 . 100 100 . . Level 1 8 | . . 56 . . 3 24 . . . . Level 2 16 | . . . . . 7 75 . . . . Level 3 9 | . . . . . 22 . . . . . Level 4 2 | . . . . . 6 . . . . . Level 5 . | . . . . . . . . . . . High Security . | . . . . . . . . . . . Max Security . | . . . . . . . . . . . Squads Dispatched 16 | . . . . 1 11 1 . 3 . . Investigation 3 | . . . . 1 1 . . 1 . . Extermination 2 | . . . . . . 1 . 1 . . Reinforcement 6 | . . . . . 5 . . 1 . . Assault 2 | . . . . . 2 . . . . . Garrison 3 | . . . . . 3 . . . . . Intercept . | . . . . . . . . . . . Searches Triggered . | . . . . . . . . . . . Construction Impeded 2 | . . . . . 2 . . . . . Haulers Reinforced . | . . . . . . . . . . . Active Scanning Responses . | . . . . . . . . . . . Cargo Convoy Interrupts . | . . . . . . . . . . . Stealth | -11 -10 -10 -10 -9 -8 -7 -7 -7 -7 -7 --------- Run | Yrd Mat Min Exi Min Mat Fac Was Fac Low Zio Distress Signals 2 | . . . . . 2 . . . . . Communications Jammed . | . . . . . . . . . . . Distress Signals . | . . . . . . . . . . . Times Spotted 139 | 1 5 9 . . 69 4 6 13 . 32 Peak Tracking Total 15 | 1 3 3 . . 7 2 6 4 . 15 Tactical Retreats 8 | . 1 2 . . 1 . . . . 4 Traps | -11 -10 -10 -10 -9 -8 -7 -7 -7 -7 -7 ------- Run | Yrd Mat Min Exi Min Mat Fac Was Fac Low Zio Traps Triggered 2 | . . . . . 1 1 . . . . Indirectly . | . . . . . . . . . . . Trap Hack Attempts . | . . . . . . . . . . . Triggered . | . . . . . . . . . . . Disarmed . | . . . . . . . . . . . Reprogrammed . | . . . . . . . . . . . Reused . | . . . . . . . . . . . Traps Extracted . | . . . . . . . . . . . Installed . | . . . . . . . . . . . Triggered 1 | . . . . 1 . . . . . . Machines | -11 -10 -10 -10 -9 -8 -7 -7 -7 -7 -7 ---------- Run | Yrd Mat Min Exi Min Mat Fac Was Fac Low Zio Machines Disabled 14 | . . . . . 10 1 . 2 . 1 Max in Single Turn 2 | . . . . . 2 1 . 1 . 1 Garrison Access 1 | . . . . . 1 . . . . . Machines Repaired . | . . . . . . . . . . . Machines Dismantled . | . . . . . . . . . . . Machines Sabotaged . | . . . . . . . . . . . Overloaded Fab Kills . | . . . . . . . . . . . Hacking | -11 -10 -10 -10 -9 -8 -7 -7 -7 -7 -7 --------- Run | Yrd Mat Min Exi Min Mat Fac Was Fac Low Zio Machines Accessed 10 | . . . 4 1 1 2 . 2 . . Terminals 3 | . . . . . . 1 . 2 . . Fabricators . | . . . . . . . . . . . Repair Stations 2 | . . . . . 1 1 . . . . Recycling Units . | . . . . . . . . . . . Scanalyzers . | . . . . . . . . . . . Garrison Access . | . . . . . . . . . . . Total Hacks 67 | . . . 49 1 3 8 . 6 . . Successful 61 | . . . 49 1 2 6 . 3 . . Failed 6 | . . . . . 1 2 . 3 . . Catastrophic . | . . . . . . . . . . . Database Lockouts . | . . . . . . . . . . . Manual 13 | . . . 7 . . . . . . 6 Terminals 9 | . . . . . . 3 . 6 . . Fabricators . | . . . . . . . . . . . Repair Stations 8 | . . . . . 3 5 . . . . Recycling Units . | . . . . . . . . . . . Scanalyzers . | . . . . . . . . . . . Garrison Access . | . . . . . . . . . . . Terminal Hacks 54 | . . . 49 1 . 1 . 3 . . Record 51 | . . . 49 . . . . 2 . . Open Door 1 | . . . . 1 . . . . . . Open DSF 1 | . . . . . . 1 . . . . Alert Level 1 | . . . . . . . . 1 . . Fabricator Hacks . | . . . . . . . . . . . Repair Station Hacks 7 | . . . . . 2 5 . . . . Scan Component 4 | . . . . . 1 3 . . . . Repair 3 | . . . . . 1 2 . . . . Recycling Unit Hacks . | . . . . . . . . . . . Scanalyzer . | . . . . . . . . . . . Garrison Access Hacks . | . . . . . . . . . . . Unauthorized Hacks . | . . . . . . . . . . . Terminals . | . . . . . . . . . . . Fabricators . | . . . . . . . . . . . Repair Stations . | . . . . . . . . . . . Recycling Units . | . . . . . . . . . . . Scanalyzers . | . . . . . . . . . . . Garrison Access . | . . . . . . . . . . . Data Cores Recovered . | . . . . . . . . . . . Used . | . . . . . . . . . . . Hacking Detections 5 | . . . . . 1 2 . 2 . . Full Trace Events 1 | . . . . . . . . 1 . . Feedback Events . | . . . . . . . . . . . Feedback Blocked . | . . . . . . . . . . . Robot Schematics Acquired . | . . . . . . . . . . . Robots Built . | . . . . . . . . . . . Authchips . | . . . . . . . . . . . Time . | . . . . . . . . . . . Total Robot Build Rating . | . . . . . . . . . . . Part Schematics Acquired 5 | . . . . . . . . . . 5 Parts Built . | . . . . . . . . . . . Authchips . | . . . . . . . . . . . Time . | . . . . . . . . . . . Total Part Build Rating . | . . . . . . . . . . . Parts Repaired 3 | . . . . . 1 2 . . . . Time 108 | . . . . . 26 82 . . . . Parts Recycled . | . . . . . . . . . . . Recycled Matter . | . . . . . . . . . . . Retrieved Matter . | . . . . . . . . . . . Retrieved Components . | . . . . . . . . . . . Parts Scanalyzed . | . . . . . . . . . . . Part Schematics Acquired . | . . . . . . . . . . . Parts Damaged . | . . . . . . . . . . . Bothacking | -11 -10 -10 -10 -9 -8 -7 -7 -7 -7 -7 ------------ Run | Yrd Mat Min Exi Min Mat Fac Was Fac Low Zio Used RIF Installer . | . . . . . . . . . . . Robots Hacked . | . . . . . . . . . . . Non-combat . | . . . . . . . . . . . Combat . | . . . . . . . . . . . Robot Hacks Applied . | . . . . . . . . . . . Relay Couplers Released 3 | . . . . . 3 . . . . . Machine Destruction 3 | . . . . . 3 . . . . . Fabnet Peak Effective % . | . . . . . . . . . . . Robots Rewired . | . . . . . . . . . . . Allies Hacked . | . . . . . . . . . . . Hacks Repelled . | . . . . . . . . . . . Allies | -11 -10 -10 -10 -9 -8 -7 -7 -7 -7 -7 -------- Run | Yrd Mat Min Exi Min Mat Fac Was Fac Low Zio Total Allies 8 | . . . . . . . 1 . . 7 Largest Group 7 | . . . . . . . 1 . . 7 Highest-Rated Group 168 | . . . . . . . 31 . . 168 Highest-Rated Ally 31 | . . . . . . . 31 . . 31 Total Orders . | . . . . . . . . . . . Ally Attacks 7 | . . . . . . . 7 . . . Total Damage 124 | . . . . . . . 124 . . . Kills . | . . . . . . . . . . . Allies Corrupted . | . . . . . . . . . . . Allies Melted . | . . . . . . . . . . . Intel | -11 -10 -10 -10 -9 -8 -7 -7 -7 -7 -7 ------- Run | Yrd Mat Min Exi Min Mat Fac Was Fac Low Zio Robot Analysis Total . | . . . . . . . . . . . Derelict Logs Recovered 2 | . . . . . . . . . . 2 Drone Launches . | . . . . . . . . . . . Drone Recoveries . | . . . . . . . . . . . Exploration | -11 -10 -10 -10 -9 -8 -7 -7 -7 -7 -7 ------------- Run | Yrd Mat Min Exi Min Mat Fac Was Fac Low Zio Turns Passed 9082 | 103 202 265 1743 131 2163 907 279 1179 3 2107 Spaces Moved 4782 | 74 119 134 1082 73 653 469 222 571 1 1384 Core 16 | 16 . . . . . . . . . . Treads 1812 | . 14 134 1082 73 416 . . . . 93 Legs 392 | 58 105 . . . 229 . . . . . Wheels 2562 | . . . . . 8 469 222 571 1 1291 Hover . | . . . . . . . . . . . Flight . | . . . . . . . . . . . Fastest Speed 50 | 50 120 160 160 160 120 130 115 115 130 100 Average Speed 146 | 104 124 160 160 160 189 140 123 127 130 132 Slowest Speed 400 | 120 160 160 160 160 400 260 130 130 130 240 Overloaded Moves . | . . . . . . . . . . . Propulsion Burnouts . | . . . . . . . . . . . Robots Hopped . | . . . . . . . . . . . Cave-ins Triggered 1 | . . . . . 1 . . . . . Exploration Rate (%) 38 | 8 14 26 93 17 57 11 86 18 3 88 Regions Visited 10 Branch Regions 5 Pre-discovered Areas 2 | . . . 1 . . . . . . 1 Known Exits Taken . | . . . . . . . . . . . Unknown Exits Taken 8 | 1 1 1 1 1 1 . . 1 1 . Scrap Searched 2 | . . . . . . . . . . 2 Spaces Dug 10 | . . . . . 10 . . . . . Terrain Destroyed 276 | . . . . . 276 . . . . . Melee . | . . . . . . . . . . . Projectile 17 | . . . . . 17 . . . . . AOE 259 | . . . . . 259 . . . . . Terrain Rammed . | . . . . . . . . . . . Walls Destroyed . | . . . . . . . . . . . Machines Disabled . | . . . . . . . . . . . Actions | -11 -10 -10 -10 -9 -8 -7 -7 -7 -7 -7 --------- Run | Yrd Mat Min Exi Min Mat Fac Was Fac Low Zio Total 6450 | 95 159 161 1089 87 1417 695 228 972 3 1544 Wait 1110 | . 10 2 . 4 559 164 4 347 2 18 Move 4773 | 73 118 133 1081 72 652 469 221 570 . 1384 Hop . | . . . . . . . . . . . Pick Up 112 | 11 6 3 1 6 29 24 2 11 . 19 Fast Attach 12 | . . . . . 12 . . . . . Attach 82 | 5 . . 1 3 24 12 . 10 . 27 Detach 7 | . . . . 1 1 4 . . . 1 Swap 35 | . 5 1 . 1 17 5 . 4 . 2 Drop 44 | 1 6 4 . . 18 4 1 4 1 5 Fire 267 | 5 14 18 6 . 104 13 . 26 . 81 Melee 7 | . . . . . . . . . . 7 Ram . | . . . . . . . . . . . Kick . | . . . . . . . . . . . Crush 1 | . . . . . 1 . . . . . Escape Stasis . | . . . . . . . . . . . Rewire . | . . . . . . . . . . . Trap . | . . . . . . . . . . . Miscellaneous . | . . . . . . . . . . . Route ------- -11/Scrapyard -10/Materials -10/Mines -10/Exiles (discovered 2 exits: *Min x2) -9/Mines -8/Materials -7/Factory -7/Waste -7/Factory -7/Lower Caves -7/Zion (discovered 1 exit: [*Pro]) History --------- Turn | Location | Event 2 | -11/Scrapyard | Met Revision 17 87 | -11/Scrapyard | Discovered new exit (range 8) 104 | -11/Scrapyard | Entered Materials 270 | -10/Materials | Discovered new exit (range 13) 306 | -10/Materials | Build established: Mutant 306 | -10/Materials | Entered Mines 326 | -10/Mines | Met a Derelict bent on vengeance 563 | -10/Mines | Deemed a non-threat by the Exiles lab entrance 565 | -10/Mines | Discovered new exit (range 5) 571 | -10/Mines | Entered Exiles 608 | -10/Exiles | Discovered new exit (range 14) 685 | -10/Exiles | Met 8R-AWN 713 | -10/Exiles | Met EX-HEX 787 | -10/Exiles | Met EX-DEC 858 | -10/Exiles | Visited The Gauntlet 1045 | -10/Exiles | Learned location of Zion (-7) 1144 | -10/Exiles | Discovered new exit (range 14) 1256 | -10/Exiles | Met EX-BIN 1672 | -10/Exiles | Aligned with FarCom system 1674 | -10/Exiles | Given EX-Vault access code 2314 | -10/Exiles | Entered Mines 2320 | -9/Mines | Met a Derelict shopkeep closing up shop 2430 | -9/Mines | Discovered new exit (range 8) 2445 | -9/Mines | Entered Materials 2445 | -8/Materials | Evolved 4 slots: Power x1, Propulsion x1, Utility x2 3424 | -8/Materials | Repaired Lgt. Treads 3753 | -8/Materials | Garrison activated, responded to threat 3794 | -8/Materials | Crushed by falling debris 3825 | -8/Materials | Lost 5 parts (1p1n3w) 3879 | -8/Materials | Lost 3 parts (2n1u) 4036 | -8/Materials | Lost 3 parts (2p1w) 4169 | -8/Materials | Destroyed 7 combat bots 4201 | -8/Materials | Build established: Scavenger-Mutant 4445 | -8/Materials | First assault squad dispatched 4546 | -8/Materials | System corruption reached 10% 4573 | -8/Materials | Discovered new exit (range 16) 4592 | -8/Materials | Core integrity fell below 50% 4608 | -8/Materials | Entered Factory 4608 | -7/Factory | Evolved 2 slots: Propulsion x1, Utility x1 4637 | -7/Factory | Lost 11 parts (2p4n2u3w) 4819 | -7/Factory | Repaired Med. Reactive Plating 4860 | -7/Factory | Repaired Imp. Heat Sink 5117 | -7/Factory | Build established: Mutant 5503 | -7/Factory | Discovered new exit (range 16) 5515 | -7/Factory | Sucked down chute 5515 | -7/Factory | Entered Waste 5516 | -7/Waste | Met a frightened Derelict 5530 | -7/Waste | EMP discharged 5567 | -7/Waste | Spotted C-40 Crusher 5568 | -7/Waste | Spotted C-40 Crusher 5578 | -7/Waste | Spotted C-40 Crusher 5586 | -7/Waste | Spotted C-40 Crusher 5597 | -7/Waste | Spotted C-40 Crusher 5630 | -7/Waste | EMP discharged 5630 | -7/Waste | System corruption reached 10% 5676 | -7/Waste | Crushed by Compactor (1 part destroyed, 1 dropped) 5694 | -7/Waste | Spotted C-40 Crusher 5730 | -7/Waste | EMP discharged 5781 | -7/Waste | Discovered new exit (range 12) 5794 | -7/Waste | Entered Factory 6967 | -7/Factory | Discovered new exit (range 4) 6973 | -7/Factory | Entered Lower Caves 6974 | -7/Lower Caves | A Derelict revealed a hidden shortcut to a safe place 6976 | -7/Lower Caves | Entered Zion 7007 | -7/Zion | Found CR-A16's Pointy Stick 7049 | -7/Zion | Discovered new exit (range 13) 7077 | -7/Zion | System corruption cleaned by Quarantine Array 7323 | -7/Zion | Gained Derelict followers 7793 | -7/Zion | Learned Factory terminal intel 7940 | -7/Zion | Learned Factory trap positions 8361 | -7/Zion | Gained Derelict followers 8606 | -7/Zion | Rebuked by Imprinter 8631 | -7/Zion | Attempted to imprint without authorization 8631 | -7/Zion | Attacked by Zionites 8699 | -7/Zion | Destroyed 7 combat bots 8753 | -7/Zion | Lost 11 parts (2p2n3u4w) 8758 | -7/Zion | Core integrity fell below 50% 8818 | -7/Zion | Lost 5 parts (1p2n1u1w) 9023 | -7/Zion | Core integrity fell below 20% 9083 | -7/Zion | Destroyed by HF-6PK(M) with Barrage Gun Last Messages --------------- QE-0CZ(z) pulls a Unknown Slashing Weapon out of the Twisted Machinery. VG-8ZB(z) bursts out of the Twisted Machinery. TP-ERB(z) destroyed. VG-8ZB(z) pulls a Unknown Slashing Weapon out of the Twisted Machinery. MZ-X3I(z) bursts out of the Twisted Machinery. System corrupted: Matter fused (-8). 93-UFJ(z) destroyed. MZ-X3I(z) pulls a Unknown Ballistic Gun out of the Twisted Machinery. Barrage Gun destroyed. L9-X9Z(z) destroyed. F0-6XN(z) pulls a Mak. Hammer out of the Twisted Machinery. K8-WE7(z) destroyed. QE-0CZ(z) destroyed. VG-8ZB(z) destroyed. Acquired 16 matter. [Achievement: 5k Club] Map ----- +----------------------------------------------------+ | ??????????????????????????????????????????????? | | ??????????????????????????????????????????????? | | ??????????????????????????????????????????????? | | ??????????????????????????????????????????????? | | ??????????????????????????????????????????????? | | ??????????????????????????????????????????????? | | ??????????????????????????????????????????????? | | ??????????????????????????????????????????????? | | ??????????????????????????????????????????????? | | ??????????????????????????????????????????????? | | ??????????????????????????????????????????????? | | ??????????????????????????????????????????????? | | ??????????????????????????????????????????????? | | ??????????????????????????????????????????????? | | ??????????????????????????????????????????????? | | ??????????????????????????????????????????????? | | ??????????????????????????????????????????????? | | ??????????????????????????????????????????????? | | ?????????????????????#####????????????????????? | | ??????????????????????"#"##?????###???######### | | ??????????????????????#"""###?###"#####"#"##""# | | ??????????????????????" X"#"###"""""""""""""""# | | ??????????????????????# """#""" """ """ | | ?????????????????????##% """""" "" | | ?????????????????????"==zzz /% | | ?????????????????????"@%*[M I= | | ?????????????????????#/=% z""" "" """ | | ???????????????????#""""""""""#"""""" """" | | ???????????????????#""""""##"###"###"" "#""" | | ???????????????????###"""#####?####""" """"" | | ?????????????????????#####??????#"#"" ""##"" | | ????????????????????????????#####""" """"##" | | ???????????????????????????##"#""""" """"##"" | | ???????????????????????????#"#""""" "###"""" | | ???????????????????????????#""" ""##"" | | ????????????????????????????#" ""##"" | | ???????????????????????????##" """"##"" | | ???????????????????????????#""" """"#""" | | ?????????????????????????####"" """#"" | | ????????????????????????##""""" """""" | | ????????????????????????#"" = ""#""" | | ????????????????????????#"" ""= "###"" | | ????????????????????????#""" "###"" | | ????????????????????????#"""" """#""" | | ????????????????????????###"""" *! """"""" | | ??????????????????????????#""""" !%/""" """ | | ??????????????????????????###""" """" | | ????????????????????????????##"" "##"" | | ????????????????????????????#""" ""##""" | | ?????????????????############"" ""##"""" | +----------------------------------------------------+ Best States ------------- Heat Dissipation 62 Coolant Potential 50 Energy Generation 26 Energy Capacity 600 Matter Stores 300 Matter Capacity 300 Sight Range 16 Terrain Scan Density 10 Armor Coverage 450 Resistance: KI 30 Evasion (%) 55 Recoil Reduction 3 Authchip Count 1 Item Schematics ----------------- Mak. Cloaking Device | -7/Zion | Archive Flexi-carbon Leg | -7/Zion | Archive Lgt. Fission Core | -7/Zion | Archive 0b10 Decoder Chip [Looter] | -7/Zion | Archive Gravmag System | -7/Zion | Archive Robot Schematics ------------------ None Fabricated ------------ Nothing Alien Tech Used ----------------- None Achievements -------------- 5k Club Librarian Loot Pinata Made in Tau Ceti IV Part-time Mechanic Remodeling Robot Respite Serviceable Loadout Significant Disruption System Compromised The More The Merrier Tourist Troublemaker Unlikely Earthworm Challenges ------------ None Game ------ Seed TerrabombMagneticTerrabomb Manual? 0 Play Time 02:56:02 Cumulative 4.0 hours Start 2024.03.31 @ 23:14:23 End 2024.04.01 @ 10:13:22 Sessions 3 Manual Loads 0 Difficulty Rogue Special Mode None Game No. 2 Rogue 2 Adventurer 0 Explorer 0 Win Type - Total 0 Types 0/0/0/0/0/0/0/0/0 Lore% 11 Gallery% 6 Achievement% 8 Wizard Run 0 Options --------- Layout 1 ASCII 0 Keyboard 0 Movement Mouse Keybinds 0 Fullscreen 1 Font 24/Smallcaps Map View 50x35 Zoom Use 0% Tactical HUD 0 Map Filters NONE Filters NONE Steam 1 RUN: 96b21ced-ba4e-44a6-bdf9-f1d6ef7bf41f